[Event "Titled Tuesday Blitz May 9 Late 2023"]
[White "Jonkman, Harmen"]
[Black "Tatarinov, Dmitry"]
[WhiteFideId "1002708"]
[BlackFideId "24160067"]
[WhiteElo "2368"]
[BlackElo "2326"]
[Result "0-1"]
[Round "06"]
[TimeControl "180+2"]
[Date "2023.05.09"]
[WhiteClock "0:00:00"]
[BlackClock "0:01:46"]

1. d4 {[%clk 0:02:59]}  d5 {[%clk 0:02:57]} 2. Nf3 {[%clk 0:02:57]}  e6 {[%clk 0:02:57]} 3. Bf4 {[%clk 0:02:57]}  Nf6 {[%clk 0:02:57]} 4. e3 {[%clk 0:02:57]}  c5 {[%clk 0:02:57]} 5. Nbd2 {[%clk 0:02:54]}  Bd6 {[%clk 0:02:57]} 6. Bg3 {[%clk 0:02:52]}  Qc7 {[%clk 0:02:56]} 7. dxc5 {[%clk 0:02:51]}  Bxg3 {[%clk 0:02:53]} 8. hxg3 {[%clk 0:02:50]}  Qxc5 {[%clk 0:02:48]} 9. c4 {[%clk 0:02:50]}  O-O {[%clk 0:02:48]} 10. Rc1 {[%clk 0:02:48]}  Nc6 {[%clk 0:02:47]} 11. cxd5 {[%clk 0:02:45]}  Qxd5 {[%clk 0:02:44]} 12. Bc4 {[%clk 0:02:43]}  Qa5 {[%clk 0:02:42]} 13. Qc2 {[%clk 0:02:37]}  Rd8 {[%clk 0:02:38]} 14. Ke2 {[%clk 0:02:33]}  Bd7 {[%clk 0:02:28]} 15. Ne4 {[%clk 0:02:17]}  Nxe4 {[%clk 0:02:26]} 16. Qxe4 {[%clk 0:02:17]}  h6 {[%clk 0:02:27]} 17. g4 {[%clk 0:02:03]}  Nb4 {[%clk 0:02:12]} 18. g5 {[%clk 0:01:47]}  Bc6 {[%clk 0:02:12]} 19. Qh4 {[%clk 0:01:30]}  Bxf3+ {[%clk 0:02:11]} 20. gxf3 {[%clk 0:01:30]}  Qxg5 {[%clk 0:02:10]} 21. Qxg5 {[%clk 0:01:28]}  hxg5 {[%clk 0:02:10]} 22. Rcg1 {[%clk 0:01:25]}  Rac8 {[%clk 0:02:10]} 23. Bb3 {[%clk 0:01:15]}  Rc5 {[%clk 0:02:02]} 24. Rg4 {[%clk 0:00:57]}  Nd3 {[%clk 0:01:59]} 25. Rc4 {[%clk 0:00:12]}  Rxc4 {[%clk 0:01:54]} 26. Bxc4 {[%clk 0:00:12]}  Nxb2 {[%clk 0:01:53]} 27. Bb5 {[%clk 0:00:10]}  a6 {[%clk 0:01:53]} 28. Rb1 {[%clk 0:00:00]}  Nd1 {[%clk 0:01:46]} 0-1


[Site "https://www.chess.com"]

[Event "Titled Tuesday Blitz May 9 Late 2023"]
[White "Simonian, Hrair"]
[Black "Karas, Marek"]
[WhiteFideId "13302337"]
[BlackFideId "14928558"]
[WhiteElo "2447"]
[BlackElo "2233"]
[Result "1-0"]
[Round "06"]
[TimeControl "180+2"]
[Date "2023.05.09"]
[WhiteClock "0:00:05"]
[BlackClock "0:00:00"]

1. e4 {[%clk 0:02:57]}  e6 {[%clk 0:02:59]} 2. d4 {[%clk 0:02:57]}  d5 {[%clk 0:03:00]} 3. Nc3 {[%clk 0:02:58]}  Nf6 {[%clk 0:03:00]} 4. Bg5 {[%clk 0:02:56]}  Be7 {[%clk 0:02:59]} 5. e5 {[%clk 0:02:54]}  Nfd7 {[%clk 0:03:00]} 6. Bxe7 {[%clk 0:02:55]}  Qxe7 {[%clk 0:03:00]} 7. f4 {[%clk 0:02:56]}  a6 {[%clk 0:03:00]} 8. Nf3 {[%clk 0:02:56]}  c5 {[%clk 0:03:01]} 9. Qd2 {[%clk 0:02:57]}  Nc6 {[%clk 0:03:01]} 10. dxc5 {[%clk 0:02:57]}  Qxc5 {[%clk 0:03:00]} 11. Bd3 {[%clk 0:02:57]}  b5 {[%clk 0:02:59]} 12. a3 {[%clk 0:02:55]}  Bb7 {[%clk 0:02:59]} 13. Ne2 {[%clk 0:02:53]}  b4 {[%clk 0:02:52]} 14. axb4 {[%clk 0:02:50]}  Nxb4 {[%clk 0:02:52]} 15. Ned4 {[%clk 0:02:46]}  Nxd3+ {[%clk 0:02:48]} 16. Qxd3 {[%clk 0:02:47]}  Qb4+ {[%clk 0:02:40]} 17. c3 {[%clk 0:02:44]}  Nc5 {[%clk 0:02:27]} 18. Qe2 {[%clk 0:02:24]}  Qb6 {[%clk 0:02:11]} 19. O-O {[%clk 0:02:24]}  O-O {[%clk 0:02:06]} 20. Ra2 {[%clk 0:02:13]}  a5 {[%clk 0:02:00]} 21. Rfa1 {[%clk 0:01:56]}  Ba6 {[%clk 0:01:54]} 22. Qf2 {[%clk 0:01:41]}  Bc4 {[%clk 0:01:50]} 23. Ra3 {[%clk 0:01:37]}  Nd3 {[%clk 0:01:49]} 24. Qe3 {[%clk 0:00:57]}  Qxb2 {[%clk 0:01:42]} 25. f5 {[%clk 0:00:56]}  exf5 {[%clk 0:01:26]} 26. Nxf5 {[%clk 0:00:57]}  h6 {[%clk 0:01:05]} 27. N3d4 {[%clk 0:00:56]}  Ra6 {[%clk 0:00:51]} 28. Qg3 {[%clk 0:00:52]}  Rg6 {[%clk 0:00:46]} 29. Ne7+ {[%clk 0:00:50]}  Kh7 {[%clk 0:00:47]} 30. Nxg6 {[%clk 0:00:51]}  fxg6 {[%clk 0:00:47]} 31. Nf3 {[%clk 0:00:38]}  Nc1 {[%clk 0:00:40]} 32. Qe1 {[%clk 0:00:28]}  Ne2+ {[%clk 0:00:35]} 33. Kh1 {[%clk 0:00:26]}  Qc2 {[%clk 0:00:29]} 34. Nd2 {[%clk 0:00:13]}  Bd3 {[%clk 0:00:17]} 35. e6 {[%clk 0:00:11]}  Re8 {[%clk 0:00:14]} 36. R1a2 {[%clk 0:00:10]}  Rxe6 {[%clk 0:00:02]} 37. Rxc2 {[%clk 0:00:06]}  Bxc2 {[%clk 0:00:01]} 38. Qf2 {[%clk 0:00:05]}  Bd3 {[%clk 0:00:00]} 39. Nf3 {[%clk 0:00:05]} 1-0


[Site "https://www.chess.com"]

[Event "Titled Tuesday Blitz May 9 Late 2023"]
[White "cristianserban1"]
[Black "Matinian, Nikita"]
[BlackFideId "24129100"]
[WhiteElo "2503"]
[BlackElo "2422"]
[Result "0-1"]
[Round "06"]
[TimeControl "180+2"]
[Date "2023.05.09"]
[WhiteClock "0:00:06"]
[BlackClock "0:00:43"]

1. d4 {[%clk 0:03:00]}  Nf6 {[%clk 0:02:59]} 2. Bf4 {[%clk 0:03:01]}  g6 {[%clk 0:02:57]} 3. Nc3 {[%clk 0:03:01]}  d5 {[%clk 0:02:56]} 4. e3 {[%clk 0:03:02]}  c6 {[%clk 0:02:56]} 5. Nf3 {[%clk 0:03:00]}  Nbd7 {[%clk 0:02:54]} 6. h3 {[%clk 0:02:52]}  Bg7 {[%clk 0:02:53]} 7. Be2 {[%clk 0:02:52]}  O-O {[%clk 0:02:52]} 8. O-O {[%clk 0:02:52]}  b6 {[%clk 0:02:42]} 9. a4 {[%clk 0:02:52]}  a5 {[%clk 0:02:42]} 10. Re1 {[%clk 0:02:44]}  Bb7 {[%clk 0:02:39]} 11. Ne5 {[%clk 0:02:40]}  Rc8 {[%clk 0:02:34]} 12. Bf3 {[%clk 0:02:23]}  e6 {[%clk 0:02:31]} 13. Qe2 {[%clk 0:02:19]}  c5 {[%clk 0:02:27]} 14. Nb5 {[%clk 0:02:12]}  Ba6 {[%clk 0:02:20]} 15. c3 {[%clk 0:02:08]}  Ne4 {[%clk 0:02:10]} 16. Bxe4 {[%clk 0:01:17]}  dxe4 {[%clk 0:02:11]} 17. Nc4 {[%clk 0:01:17]}  Bxb5 {[%clk 0:02:08]} 18. axb5 {[%clk 0:01:17]}  cxd4 {[%clk 0:01:41]} 19. exd4 {[%clk 0:01:06]}  f5 {[%clk 0:01:41]} 20. Nd6 {[%clk 0:01:05]}  Ra8 {[%clk 0:01:38]} 21. Qc4 {[%clk 0:01:05]}  Qe7 {[%clk 0:01:31]} 22. Re2 {[%clk 0:00:17]}  Kh8 {[%clk 0:01:30]} 23. Rae1 {[%clk 0:00:16]}  Nf6 {[%clk 0:01:28]} 24. f3 {[%clk 0:00:09]}  Nd5 {[%clk 0:01:26]} 25. Bh2 {[%clk 0:00:09]}  exf3 {[%clk 0:00:43]} 26. Rxe6 {[%clk 0:00:09]}  Qh4 {[%clk 0:00:43]} 27. g3 {[%clk 0:00:06]}  Qxh3 {[%clk 0:00:43]} 28. Qxd5 {[%clk 0:00:06]}  Qg2# {[%clk 0:00:43]} 0-1


[Site "https://www.chess.com"]

[Event "Titled Tuesday Blitz May 9 Late 2023"]
[White "Lewicki, Miroslaw"]
[Black "Ladan, Nicholas"]
[WhiteFideId "1113380"]
[BlackFideId "30918855"]
[WhiteElo "2212"]
[BlackElo "2167"]
[Result "1-0"]
[Round "06"]
[TimeControl "180+2"]
[Date "2023.05.09"]
[WhiteClock "0:01:37"]
[BlackClock "0:00:10"]

1. g3 {[%clk 0:02:57]}  d5 {[%clk 0:03:00]} 2. Bg2 {[%clk 0:02:58]}  Nf6 {[%clk 0:03:00]} 3. Nf3 {[%clk 0:02:58]}  c5 {[%clk 0:02:58]} 4. O-O {[%clk 0:02:58]}  Nc6 {[%clk 0:02:58]} 5. c3 {[%clk 0:02:57]}  Bf5 {[%clk 0:02:57]} 6. d4 {[%clk 0:02:57]}  e6 {[%clk 0:02:57]} 7. Nbd2 {[%clk 0:02:56]}  h6 {[%clk 0:02:57]} 8. dxc5 {[%clk 0:02:55]}  Bxc5 {[%clk 0:02:57]} 9. Nb3 {[%clk 0:02:55]}  Bb6 {[%clk 0:02:56]} 10. Nfd4 {[%clk 0:02:55]}  Bg6 {[%clk 0:02:54]} 11. Be3 {[%clk 0:02:55]}  O-O {[%clk 0:02:53]} 12. a4 {[%clk 0:02:52]}  a6 {[%clk 0:02:49]} 13. a5 {[%clk 0:02:52]}  Nxa5 {[%clk 0:02:42]} 14. Nxe6 {[%clk 0:02:42]}  fxe6 {[%clk 0:02:37]} 15. Bxb6 {[%clk 0:02:42]}  Qxb6 {[%clk 0:02:35]} 16. Rxa5 {[%clk 0:02:41]}  Be4 {[%clk 0:02:04]} 17. Bh3 {[%clk 0:02:33]}  h5 {[%clk 0:01:42]} 18. Ra3 {[%clk 0:02:24]}  Ng4 {[%clk 0:01:40]} 19. Qd4 {[%clk 0:02:22]}  Qxd4 {[%clk 0:01:35]} 20. Nxd4 {[%clk 0:02:21]}  e5 {[%clk 0:01:33]} 21. Ne6 {[%clk 0:02:20]}  Rf6 {[%clk 0:01:27]} 22. Nc5 {[%clk 0:02:16]}  Rc8 {[%clk 0:01:18]} 23. Nxe4 {[%clk 0:02:09]}  dxe4 {[%clk 0:01:19]} 24. f3 {[%clk 0:02:09]}  Ne3 {[%clk 0:00:49]} 25. Bxc8 {[%clk 0:02:03]}  Nxf1 {[%clk 0:00:49]} 26. Kxf1 {[%clk 0:02:02]}  exf3 {[%clk 0:00:50]} 27. Bxb7 {[%clk 0:01:58]}  fxe2+ {[%clk 0:00:43]} 28. Kxe2 {[%clk 0:01:58]}  Rb6 {[%clk 0:00:43]} 29. Bd5+ {[%clk 0:01:58]}  Kh7 {[%clk 0:00:42]} 30. b4 {[%clk 0:01:59]}  Kg6 {[%clk 0:00:39]} 31. Bc4 {[%clk 0:01:58]}  Kg5 {[%clk 0:00:38]} 32. Rxa6 {[%clk 0:01:56]}  Rb8 {[%clk 0:00:39]} 33. Be6 {[%clk 0:01:55]}  h4 {[%clk 0:00:36]} 34. Kf3 {[%clk 0:01:50]}  Rf8+ {[%clk 0:00:35]} 35. Ke4 {[%clk 0:01:48]}  Rf2 {[%clk 0:00:33]} 36. gxh4+ {[%clk 0:01:47]}  Kxh4 {[%clk 0:00:33]} 37. Ra8 {[%clk 0:01:45]}  Re2+ {[%clk 0:00:28]} 38. Kd5 {[%clk 0:01:46]}  Kg5 {[%clk 0:00:27]} 39. b5 {[%clk 0:01:44]}  Rxh2 {[%clk 0:00:23]} 40. b6 {[%clk 0:01:44]}  Rb2 {[%clk 0:00:22]} 41. Kc6 {[%clk 0:01:42]}  e4 {[%clk 0:00:22]} 42. b7 {[%clk 0:01:40]}  e3 {[%clk 0:00:21]} 43. Bc4 {[%clk 0:01:40]}  e2 {[%clk 0:00:17]} 44. Bxe2 {[%clk 0:01:40]}  Rxe2 {[%clk 0:00:16]} 45. b8=Q {[%clk 0:01:39]}  g6 {[%clk 0:00:14]} 46. Qg3+ {[%clk 0:01:39]}  Kh6 {[%clk 0:00:13]} 47. Qh4+ {[%clk 0:01:38]}  Kg7 {[%clk 0:00:13]} 48. Ra7+ {[%clk 0:01:38]}  Kg8 {[%clk 0:00:10]} 49. Qh7+ {[%clk 0:01:37]} 1-0


[Site "https://www.chess.com"]

[Event "Titled Tuesday Blitz May 9 Late 2023"]
[White "TimGrutter03"]
[Black "KorolDimitriy75"]
[WhiteElo "2615"]
[BlackElo "2468"]
[Result "1-0"]
[Round "06"]
[TimeControl "180+2"]
[Date "2023.05.09"]
[WhiteClock "0:00:02"]
[BlackClock "0:00:00"]

1. b3 {[%clk 0:03:00]}  c5 {[%clk 0:02:59]} 2. Bb2 {[%clk 0:03:00]}  Nc6 {[%clk 0:03:00]} 3. Nf3 {[%clk 0:02:59]}  d6 {[%clk 0:03:00]} 4. e3 {[%clk 0:02:59]}  e5 {[%clk 0:03:01]} 5. d4 {[%clk 0:02:56]}  cxd4 {[%clk 0:03:00]} 6. exd4 {[%clk 0:02:56]}  e4 {[%clk 0:03:00]} 7. Nfd2 {[%clk 0:02:56]}  d5 {[%clk 0:03:01]} 8. Bb5 {[%clk 0:02:55]}  Nf6 {[%clk 0:02:52]} 9. O-O {[%clk 0:02:55]}  Bd6 {[%clk 0:02:31]} 10. h3 {[%clk 0:02:55]}  a6 {[%clk 0:02:20]} 11. Bxc6+ {[%clk 0:02:51]}  bxc6 {[%clk 0:02:21]} 12. c4 {[%clk 0:02:52]}  O-O {[%clk 0:02:20]} 13. Nc3 {[%clk 0:02:43]}  Be6 {[%clk 0:02:18]} 14. Rc1 {[%clk 0:02:40]}  Qd7 {[%clk 0:02:17]} 15. cxd5 {[%clk 0:02:29]}  cxd5 {[%clk 0:02:18]} 16. Na4 {[%clk 0:02:28]}  Bxh3 {[%clk 0:02:14]} 17. Rc3 {[%clk 0:02:10]}  Bg4 {[%clk 0:02:06]} 18. Qc1 {[%clk 0:02:01]}  Qf5 {[%clk 0:01:59]} 19. Rc6 {[%clk 0:01:55]}  Bf4 {[%clk 0:01:49]} 20. g3 {[%clk 0:01:45]}  Bf3 {[%clk 0:01:31]} 21. Nxf3 {[%clk 0:01:31]}  Bxc1 {[%clk 0:01:27]} 22. Nh4 {[%clk 0:01:31]}  Qh3 {[%clk 0:01:18]} 23. Rfxc1 {[%clk 0:01:13]}  Ng4 {[%clk 0:01:17]} 24. R6c2 {[%clk 0:01:05]}  Rac8 {[%clk 0:00:57]} 25. Nc5 {[%clk 0:01:04]}  Rc6 {[%clk 0:00:51]} 26. Nf5 {[%clk 0:00:44]}  Qh2+ {[%clk 0:00:42]} 27. Kf1 {[%clk 0:00:45]}  Qh1+ {[%clk 0:00:42]} 28. Ke2 {[%clk 0:00:45]}  Qf3+ {[%clk 0:00:42]} 29. Kf1 {[%clk 0:00:46]}  Qxf5 {[%clk 0:00:41]} 30. Ke1 {[%clk 0:00:34]}  Rh6 {[%clk 0:00:36]} 31. Kd2 {[%clk 0:00:31]}  Rh2 {[%clk 0:00:31]} 32. Kc3 {[%clk 0:00:28]}  Rxf2 {[%clk 0:00:30]} 33. Rxf2 {[%clk 0:00:23]}  Qxf2 {[%clk 0:00:29]} 34. Kb4 {[%clk 0:00:21]}  e3 {[%clk 0:00:24]} 35. Bc3 {[%clk 0:00:19]}  e2 {[%clk 0:00:22]} 36. Nd3 {[%clk 0:00:19]}  Qf1 {[%clk 0:00:19]} 37. Be1 {[%clk 0:00:13]}  Ne3 {[%clk 0:00:18]} 38. Ka5 {[%clk 0:00:07]}  h5 {[%clk 0:00:12]} 39. b4 {[%clk 0:00:07]}  Ng2 {[%clk 0:00:06]} 40. a4 {[%clk 0:00:07]}  Qf3 {[%clk 0:00:03]} 41. Ne5 {[%clk 0:00:03]}  Qa3 {[%clk 0:00:00]} 42. Rb1 {[%clk 0:00:02]} 1-0


[Site "https://www.chess.com"]

[Event "Titled Tuesday Blitz May 9 Late 2023"]
[White "Filgueira, Hernan"]
[Black "marik_spb"]
[WhiteFideId "101770"]
[WhiteElo "2363"]
[BlackElo "2461"]
[Result "1-0"]
[Round "06"]
[TimeControl "180+2"]
[Date "2023.05.09"]
[WhiteClock "0:00:47"]
[BlackClock "0:00:00"]

1. c4 {[%clk 0:02:59]}  Nf6 {[%clk 0:02:49]} 2. Nc3 {[%clk 0:02:59]}  d6 {[%clk 0:02:45]} 3. g3 {[%clk 0:02:58]}  g6 {[%clk 0:02:45]} 4. Bg2 {[%clk 0:02:58]}  Bg7 {[%clk 0:02:46]} 5. d4 {[%clk 0:02:58]}  O-O {[%clk 0:02:45]} 6. Nf3 {[%clk 0:02:59]}  c5 {[%clk 0:02:46]} 7. O-O {[%clk 0:02:58]}  Nc6 {[%clk 0:02:44]} 8. d5 {[%clk 0:02:57]}  Na5 {[%clk 0:02:45]} 9. Nd2 {[%clk 0:02:57]}  e6 {[%clk 0:02:39]} 10. Qc2 {[%clk 0:02:54]}  exd5 {[%clk 0:02:37]} 11. cxd5 {[%clk 0:02:53]}  a6 {[%clk 0:02:33]} 12. b3 {[%clk 0:02:42]}  b5 {[%clk 0:02:30]} 13. Bb2 {[%clk 0:02:42]}  Re8 {[%clk 0:01:44]} 14. e4 {[%clk 0:02:38]}  Rb8 {[%clk 0:01:34]} 15. Rae1 {[%clk 0:02:35]}  b4 {[%clk 0:01:16]} 16. Nd1 {[%clk 0:02:33]}  Bd7 {[%clk 0:01:15]} 17. Ne3 {[%clk 0:02:31]}  Bb5 {[%clk 0:01:14]} 18. Nec4 {[%clk 0:02:29]}  Nxc4 {[%clk 0:01:14]} 19. bxc4 {[%clk 0:02:14]}  Bd7 {[%clk 0:01:09]} 20. e5 {[%clk 0:02:10]}  dxe5 {[%clk 0:01:01]} 21. Bxe5 {[%clk 0:02:09]}  Rb6 {[%clk 0:00:51]} 22. Nb3 {[%clk 0:02:01]}  Bf5 {[%clk 0:00:49]} 23. Qb2 {[%clk 0:02:00]}  Rxe5 {[%clk 0:00:34]} 24. Qxe5 {[%clk 0:01:59]}  Ne4 {[%clk 0:00:19]} 25. Qf4 {[%clk 0:01:55]}  Nd6 {[%clk 0:00:12]} 26. Nxc5 {[%clk 0:01:48]}  g5 {[%clk 0:00:12]} 27. Qc1 {[%clk 0:01:44]}  a5 {[%clk 0:00:11]} 28. Ne4 {[%clk 0:01:31]}  Bxe4 {[%clk 0:00:11]} 29. Bxe4 {[%clk 0:01:31]}  Rb8 {[%clk 0:00:12]} 30. Bd3 {[%clk 0:01:25]}  Bc3 {[%clk 0:00:11]} 31. Re2 {[%clk 0:01:23]}  Rc8 {[%clk 0:00:09]} 32. Qe3 {[%clk 0:01:03]}  Nxc4 {[%clk 0:00:07]} 33. Qe4 {[%clk 0:01:03]}  Nb2 {[%clk 0:00:02]} 34. Qxh7+ {[%clk 0:01:01]}  Kf8 {[%clk 0:00:02]} 35. Be4 {[%clk 0:00:59]}  Qf6 {[%clk 0:00:02]} 36. Bf5 {[%clk 0:00:53]}  Rd8 {[%clk 0:00:01]} 37. Be4 {[%clk 0:00:51]}  Nc4 {[%clk 0:00:01]} 38. Bg2 {[%clk 0:00:50]}  Nd2 {[%clk 0:00:01]} 39. Rd1 {[%clk 0:00:49]}  Nf3+ {[%clk 0:00:00]} 40. Kh1 {[%clk 0:00:47]} 1-0


[Site "https://www.chess.com"]

[Event "Titled Tuesday Blitz May 9 Late 2023"]
[White "Rangel, Daniel"]
[Black "Komov, Roman"]
[WhiteFideId "2124475"]
[BlackFideId "24175714"]
[WhiteElo "2256"]
[BlackElo "2189"]
[Result "0-1"]
[Round "06"]
[TimeControl "180+2"]
[Date "2023.05.09"]
[WhiteClock "0:00:00"]
[BlackClock "0:00:19"]

1. c4 {[%clk 0:03:00]}  c5 {[%clk 0:02:58]} 2. Nc3 {[%clk 0:02:59]}  Nc6 {[%clk 0:02:58]} 3. g3 {[%clk 0:02:59]}  g6 {[%clk 0:02:57]} 4. Bg2 {[%clk 0:02:59]}  Bg7 {[%clk 0:02:58]} 5. e3 {[%clk 0:03:00]}  e5 {[%clk 0:02:58]} 6. Nge2 {[%clk 0:03:00]}  Nge7 {[%clk 0:02:57]} 7. O-O {[%clk 0:03:00]}  O-O {[%clk 0:02:56]} 8. Nd5 {[%clk 0:03:00]}  d6 {[%clk 0:02:54]} 9. Nec3 {[%clk 0:03:01]}  Be6 {[%clk 0:02:51]} 10. a3 {[%clk 0:03:01]}  a5 {[%clk 0:02:49]} 11. Rb1 {[%clk 0:03:01]}  Rb8 {[%clk 0:02:43]} 12. d3 {[%clk 0:02:58]}  f5 {[%clk 0:02:39]} 13. Bd2 {[%clk 0:02:55]}  Kh8 {[%clk 0:02:37]} 14. f4 {[%clk 0:02:52]}  Bg8 {[%clk 0:02:30]} 15. Kh1 {[%clk 0:02:47]}  Nxd5 {[%clk 0:02:28]} 16. Nxd5 {[%clk 0:02:46]}  b5 {[%clk 0:02:25]} 17. b3 {[%clk 0:02:42]}  b4 {[%clk 0:02:21]} 18. axb4 {[%clk 0:02:35]}  axb4 {[%clk 0:02:20]} 19. Ra1 {[%clk 0:02:31]}  exf4 {[%clk 0:02:03]} 20. gxf4 {[%clk 0:02:32]}  Bxd5 {[%clk 0:01:47]} 21. Bxd5 {[%clk 0:02:31]}  Ne7 {[%clk 0:01:47]} 22. Bf3 {[%clk 0:02:27]}  d5 {[%clk 0:01:44]} 23. Ra7 {[%clk 0:02:20]}  dxc4 {[%clk 0:01:32]} 24. dxc4 {[%clk 0:02:19]}  Nc8 {[%clk 0:01:24]} 25. Ra6 {[%clk 0:02:06]}  Rb6 {[%clk 0:01:15]} 26. Rxb6 {[%clk 0:01:52]}  Qxb6 {[%clk 0:01:10]} 27. Bc1 {[%clk 0:01:52]}  Rd8 {[%clk 0:01:08]} 28. Qc2 {[%clk 0:01:52]}  Nd6 {[%clk 0:01:08]} 29. Rd1 {[%clk 0:01:51]}  Ne4 {[%clk 0:01:06]} 30. Rxd8+ {[%clk 0:01:38]}  Qxd8 {[%clk 0:01:06]} 31. Bxe4 {[%clk 0:01:39]}  fxe4 {[%clk 0:01:06]} 32. Qxe4 {[%clk 0:01:34]}  Qd1+ {[%clk 0:01:06]} 33. Kg2 {[%clk 0:01:34]}  Bf6 {[%clk 0:00:49]} 34. Qe6 {[%clk 0:01:09]}  Kg7 {[%clk 0:00:46]} 35. e4 {[%clk 0:00:20]}  Qxc1 {[%clk 0:00:44]} 36. Qd7+ {[%clk 0:00:16]}  Kf8 {[%clk 0:00:30]} 37. Qc8+ {[%clk 0:00:15]}  Kf7 {[%clk 0:00:27]} 38. Qd7+ {[%clk 0:00:12]}  Be7 {[%clk 0:00:27]} 39. Qd5+ {[%clk 0:00:12]}  Kf8 {[%clk 0:00:24]} 40. Qe5 {[%clk 0:00:04]}  Qd2+ {[%clk 0:00:22]} 41. Kf3 {[%clk 0:00:03]}  Qc3+ {[%clk 0:00:22]} 42. Qxc3 {[%clk 0:00:02]}  bxc3 {[%clk 0:00:23]} 43. Ke3 {[%clk 0:00:03]}  g5 {[%clk 0:00:20]} 44. f5 {[%clk 0:00:02]}  Bf6 {[%clk 0:00:19]} 45. Kd3 {[%clk 0:00:01]}  Ke7 {[%clk 0:00:19]} 46. h3 {[%clk 0:00:01]}  h5 {[%clk 0:00:19]} 47. Kc2 {[%clk 0:00:01]}  g4 {[%clk 0:00:19]} 48. hxg4 {[%clk 0:00:01]}  hxg4 {[%clk 0:00:20]} 49. Kd3 {[%clk 0:00:02]}  Be5 {[%clk 0:00:20]} 50. Ke3 {[%clk 0:00:01]}  g3 {[%clk 0:00:19]} 51. Kf3 {[%clk 0:00:01]}  c2 {[%clk 0:00:19]} 52. Kg4 {[%clk 0:00:00]}  c1=Q {[%clk 0:00:19]} 0-1


[Site "https://www.chess.com"]

[Event "Titled Tuesday Blitz May 9 Late 2023"]
[White "Pavlidou, Ekaterini"]
[Black "Hnydiuk, Aleksander"]
[WhiteFideId "4213262"]
[BlackFideId "1109057"]
[WhiteElo "2126"]
[BlackElo "2374"]
[Result "0-1"]
[Round "06"]
[TimeControl "180+2"]
[Date "2023.05.09"]
[WhiteClock "0:00:04"]
[BlackClock "0:00:07"]

1. d4 {[%clk 0:02:56]}  Nf6 {[%clk 0:02:59]} 2. c4 {[%clk 0:02:56]}  c5 {[%clk 0:02:59]} 3. d5 {[%clk 0:02:56]}  b5 {[%clk 0:02:59]} 4. cxb5 {[%clk 0:02:56]}  a6 {[%clk 0:03:00]} 5. bxa6 {[%clk 0:02:56]}  g6 {[%clk 0:03:00]} 6. Nc3 {[%clk 0:02:56]}  Bg7 {[%clk 0:03:00]} 7. e4 {[%clk 0:02:57]}  O-O {[%clk 0:03:00]} 8. Nf3 {[%clk 0:02:57]}  Qa5 {[%clk 0:02:59]} 9. Bd2 {[%clk 0:02:54]}  Bxa6 {[%clk 0:02:58]} 10. a4 {[%clk 0:02:38]}  Bxf1 {[%clk 0:02:48]} 11. Kxf1 {[%clk 0:02:38]}  Qa6+ {[%clk 0:02:40]} 12. Kg1 {[%clk 0:02:33]}  d6 {[%clk 0:02:39]} 13. Qc2 {[%clk 0:02:23]}  Nbd7 {[%clk 0:02:39]} 14. h3 {[%clk 0:02:21]}  Rfb8 {[%clk 0:02:38]} 15. Kh2 {[%clk 0:02:19]}  Ne8 {[%clk 0:02:23]} 16. Nb5 {[%clk 0:02:16]}  Nb6 {[%clk 0:02:22]} 17. Nc3 {[%clk 0:01:56]}  Nc7 {[%clk 0:02:10]} 18. b3 {[%clk 0:01:52]}  e6 {[%clk 0:01:56]} 19. dxe6 {[%clk 0:01:41]}  fxe6 {[%clk 0:01:57]} 20. Bf4 {[%clk 0:01:39]}  Nd7 {[%clk 0:01:34]} 21. Rhd1 {[%clk 0:01:38]}  Ne8 {[%clk 0:01:26]} 22. Nb5 {[%clk 0:01:36]}  Bxa1 {[%clk 0:01:25]} 23. Nxd6 {[%clk 0:01:25]}  Nxd6 {[%clk 0:01:13]} 24. Rxd6 {[%clk 0:01:25]}  Qb7 {[%clk 0:01:09]} 25. Qd1 {[%clk 0:01:24]}  Bd4 {[%clk 0:01:05]} 26. Nxd4 {[%clk 0:01:22]}  cxd4 {[%clk 0:01:06]} 27. Qxd4 {[%clk 0:01:20]}  Nf8 {[%clk 0:01:03]} 28. Bh6 {[%clk 0:01:15]}  Qe7 {[%clk 0:00:57]} 29. e5 {[%clk 0:00:34]}  Rd8 {[%clk 0:00:57]} 30. Qe4 {[%clk 0:00:22]}  Rxd6 {[%clk 0:00:46]} 31. exd6 {[%clk 0:00:22]}  Qxd6+ {[%clk 0:00:46]} 32. Bf4 {[%clk 0:00:18]}  Qd5 {[%clk 0:00:45]} 33. Qe3 {[%clk 0:00:18]}  Re8 {[%clk 0:00:43]} 34. Be5 {[%clk 0:00:17]}  Nd7 {[%clk 0:00:42]} 35. Bb2 {[%clk 0:00:18]}  e5 {[%clk 0:00:40]} 36. b4 {[%clk 0:00:18]}  Ra8 {[%clk 0:00:32]} 37. a5 {[%clk 0:00:17]}  Kf7 {[%clk 0:00:24]} 38. f4 {[%clk 0:00:17]}  Ke6 {[%clk 0:00:23]} 39. fxe5 {[%clk 0:00:16]}  Rb8 {[%clk 0:00:20]} 40. Qf4 {[%clk 0:00:13]}  Rf8 {[%clk 0:00:17]} 41. Qg4+ {[%clk 0:00:13]}  Rf5 {[%clk 0:00:15]} 42. a6 {[%clk 0:00:13]}  Qd2 {[%clk 0:00:09]} 43. Qc4+ {[%clk 0:00:11]}  Ke7 {[%clk 0:00:09]} 44. Ba3 {[%clk 0:00:09]}  Qf4+ {[%clk 0:00:07]} 45. Qxf4 {[%clk 0:00:08]}  Rxf4 {[%clk 0:00:08]} 46. b5+ {[%clk 0:00:07]}  Ke6 {[%clk 0:00:07]} 47. a7 {[%clk 0:00:07]}  Ra4 {[%clk 0:00:07]} 48. b6 {[%clk 0:00:07]}  Nxb6 {[%clk 0:00:07]} 49. Bc5 {[%clk 0:00:08]}  Nd7 {[%clk 0:00:07]} 50. Be3 {[%clk 0:00:08]}  Nxe5 {[%clk 0:00:07]} 51. Kg3 {[%clk 0:00:04]}  Nc6 {[%clk 0:00:07]} 0-1


[Site "https://www.chess.com"]